bitfinex/quotes_BTCUSD_20251214
["timestamp","ask_amount","ask_price","bid_price","bid_amount"]
[1765736829632,0.49845643,88828.0,88827.0,0.00111568]
[1765736829837,0.52268122,88828.0,88827.0,0.00111568]
[1765736830476,0.52368122,88828.0,88827.0,0.00111568]
[1765736830900,0.52368122,88828.0,88827.0,0.00011568]
[1765736831077,0.52468122,88828.0,88827.0,0.00011568]
[1765736831273,0.42285785,88828.0,88827.0,0.00011568]
[1765736831535,0.54916558,88828.0,88827.0,0.00011568]
[1765736831682,0.58757047,88828.0,88827.0,0.00011568]
[1765736831877,0.58857047,88828.0,88827.0,0.00011568]
[1765736832077,0.58957047,88828.0,88827.0,0.00011568]
[1765736832274,0.47806285,88828.0,88827.0,0.00011568]
[1765736832479,0.49032563,88828.0,88827.0,0.00011568]
[1765736832702,0.74022563,88828.0,88827.0,0.00111568]
[1765736832903,0.73822563,88828.0,88827.0,0.00111568]
[1765736833102,0.74022563,88828.0,88827.0,0.00111568]
[1765736838321,0.85862563,88828.0,88827.0,0.00111568]
[1765736840568,0.91874195,88828.0,88827.0,0.00111568]
[1765736842661,0.91874195,88828.0,88827.0,1e-08]
[1765736842662,1.08538974,88828.0,88827.0,1e-08]
[1765736842875,1.08538974,88828.0,88812.0,1e-08]
[1765736842876,0.58445356,88813.0,88812.0,1e-08]
[1765736843083,0.98787684,88813.0,88812.0,1e-08]
[1765736843524,0.99609045,88813.0,88812.0,1e-08]
[1765736843728,1.24399044,88813.0,88812.0,1e-08]
[1765736844483,1.24999044,88813.0,88812.0,0.00100001]
[1765736844688,1.24999044,88813.0,88812.0,1e-08]
[1765736845508,1.25599044,88813.0,88812.0,1e-08]
[1765736845900,1.36649806,88813.0,88812.0,1e-08]
[1765736847206,1.27278356,88813.0,88812.0,1e-08]
[1765736847414,1.23819044,88813.0,88812.0,1e-08]
[1765736847664,1.25599044,88813.0,88812.0,1e-08]
[1765736847908,0.84689044,88813.0,88812.0,1e-08]
[1765736848306,1.06977205,88813.0,88812.0,1e-08]
[1765736848525,1.0688481,88813.0,88812.0,1e-08]
[1765736848752,1.0628481,88813.0,88812.0,1e-08]
[1765736849187,1.11686649,88813.0,88812.0,1e-08]
[1765736849405,0.11234517,88787.0,88786.0,0.01126303]
[1765736849628,0.11234517,88787.0,88786.0,0.0001157]
[1765736850043,0.11234517,88787.0,88786.0,0.22537643]
[1765736850614,0.11234517,88787.0,88786.0,0.22637643]
[1765736851114,0.0065,88790.0,88787.0,0.01126291]
[1765736851787,0.11234517,88796.0,88791.0,0.22524805]
[1765736852037,0.23172818,88799.0,88793.0,0.23650376]
[1765736852261,0.11234517,88796.0,88793.0,0.01126214]
[1765736852464,0.01126164,88797.0,88793.0,0.01126214]
[1765736852617,0.11234517,88794.0,88793.0,0.01126214]
[1765736852992,0.11234517,88792.0,88791.0,0.23651045]
[1765736853199,0.01126202,88794.0,88788.0,0.23651625]
[1765736853398,0.01126202,88794.0,88793.0,0.004]
[1765736853399,0.12360719,88794.0,88793.0,0.004]
[1765736853595,0.34884774,88794.0,88793.0,0.004]
[1765736853894,0.26248257,88794.0,88793.0,0.002]
[1765736854117,0.57945611,88794.0,88793.0,0.002]
[1765736854317,0.66714061,88794.0,88793.0,0.002]
[1765736855126,0.66714061,88794.0,88791.0,0.002]
[1765736855127,0.67830907,88792.0,88791.0,0.002]
[1765736855327,0.33760337,88787.0,88786.0,0.0001157]
[1765736855528,0.35059337,88787.0,88786.0,0.0001157]
[1765736855734,0.36519624,88787.0,88786.0,0.0001157]
[1765736856279,0.36519624,88787.0,88786.0,0.0011157]
[1765736856696,0.36519624,88787.0,88786.0,0.0031157]
[1765736857537,0.38299624,88787.0,88786.0,0.0031157]
[1765736857869,0.37000624,88787.0,88786.0,0.0031157]
[1765736858070,0.33760337,88787.0,88786.0,0.0031157]
[1765736858265,0.11234517,88787.0,88786.0,0.0031157]
[1765736858684,0.11234517,88787.0,88786.0,0.0194757]
[1765736858892,0.02906252,88790.0,88786.0,0.0194757]
[1765736859120,0.11234517,88787.0,88786.0,0.05389873]
[1765736859318,0.11234517,88787.0,88786.0,0.03073873]
[1765736859820,0.12533517,88787.0,88786.0,0.01337873]
[1765736860020,0.12533517,88787.0,88786.0,0.23863946]
[1765736860482,0.11234517,88787.0,88786.0,0.23963946]
[1765736861094,0.52251437,88840.0,88786.0,0.23963946]
[1765736861095,0.01126189,88795.0,88791.0,0.0112624]
[1765736861309,0.01126189,88795.0,88788.0,0.2365176]
[1765736861310,0.01126227,88792.0,88788.0,0.2365176]
[1765736861683,0.11234517,88790.0,88789.0,0.01126265]
[1765736861884,0.11234517,88790.0,88789.0,0.01196635]
[1765736863288,0.11234517,88790.0,88789.0,0.01296635]
[1765736863655,0.33759576,88790.0,88789.0,0.0017037]
[1765736863785,0.11234517,88790.0,88789.0,0.0017037]
[1765736864388,0.11234517,88790.0,88789.0,0.0007037]
[1765736864586,0.11334517,88790.0,88789.0,0.0047037]
[1765736864789,0.11334517,88790.0,88789.0,0.0087037]
[1765736865292,0.33759576,88790.0,88789.0,0.0047037]
[1765736865486,0.33859576,88790.0,88789.0,0.0077037]
[1765736865693,0.11334517,88790.0,88789.0,0.0077037]
[1765736866299,0.11234517,88790.0,88789.0,0.0047037]
[1765736866414,0.12533517,88790.0,88789.0,0.0047037]
[1765736867443,0.12533517,88790.0,88789.0,0.0007037]
[1765736867775,0.11334517,88790.0,88789.0,0.0057037]
[1765736870769,0.001,88790.0,88789.0,0.0452237]
[1765736871933,0.11334517,88790.0,88789.0,0.0452237]
[1765736873113,0.11334517,88790.0,88789.0,0.05997007]
[1765736873250,0.11334517,88790.0,88789.0,0.02045007]
[1765736873468,0.36457576,88790.0,88789.0,0.0057037]
[1765736873677,0.36618863,88790.0,88789.0,0.0057037]
[1765736874959,0.11495804,88790.0,88789.0,0.0057037]
[1765736875169,0.11334517,88790.0,88789.0,0.0057037]
[1765736876080,0.12633517,88790.0,88789.0,0.0057037]
[1765736876911,0.13932517,88790.0,88789.0,0.0057037]
[1765736881711,0.11334517,88790.0,88789.0,0.0057037]
[1765736881941,0.001,88790.0,88789.0,0.0462137]
[1765736882634,0.11334517,88790.0,88789.0,0.0217137]
[1765736882837,0.11334517,88790.0,88789.0,0.0057037]
[1765736883073,0.13932517,88790.0,88789.0,0.0057037]
[1765736883276,0.12633517,88790.0,88789.0,0.0057037]
[1765736884042,0.11334517,88790.0,88789.0,0.0057037]
[1765736884250,0.001,88790.0,88789.0,0.0462137]
[1765736884492,0.11334517,88790.0,88789.0,0.0462137]
[1765736884732,0.11334517,88790.0,88789.0,0.0217137]
[1765736884914,0.11334517,88790.0,88789.0,0.0057037]
[1765736885951,0.11334517,88790.0,88789.0,0.0462137]
[1765736886108,0.001,88790.0,88789.0,0.0462137]
[1765736886522,0.11334517,88790.0,88789.0,0.0462137]
[1765736891690,0.11334517,88790.0,88789.0,0.0057037]
[1765736892686,0.001,88790.0,88789.0,0.0462137]
[1765736892889,0.001,88790.0,88789.0,0.06873901]
[1765736893399,0.11334517,88790.0,88789.0,0.06873901]
[1765736893861,0.11334517,88790.0,88789.0,0.08653901]
[1765736893862,0.001,88790.0,88789.0,0.08653901]
[1765736894042,0.001,88790.0,88789.0,0.07957752]
[1765736894635,0.01126075,88804.0,88800.0,0.01126126]
[1765736894811,0.01126088,88803.0,88800.0,0.01126126]
[1765736895012,0.01126075,88804.0,88801.0,0.01126113]
[1765736895213,0.0112605,88806.0,88802.0,0.011261]
[1765736896661,0.0112605,88806.0,88802.0,0.012261]
[1765736897479,0.22520007,88810.0,88806.0,0.0112605]
[1765736897815,0.11234517,88807.0,88805.0,0.03943062]
[1765736898205,0.11234517,88806.0,88805.0,0.03943062]
[1765736898616,0.11234517,88806.0,88805.0,0.26464316]
[1765736898911,0.11234517,88806.0,88805.0,0.28914316]
[1765736899259,0.11234517,88807.0,88806.0,0.0112605]
[1765736899605,0.11234517,88807.0,88806.0,0.0517705]
[1765736900233,0.01125923,88816.0,88808.0,0.01126024]
[1765736900234,0.11234517,88810.0,88808.0,0.01126024]
[1765736900496,0.11234517,88814.0,88813.0,0.01125961]
[1765736901835,0.11272979,88814.0,88813.0,0.23645186]
[1765736902033,0.00038462,88814.0,88813.0,0.23745186]
[1765736902249,0.00038462,88814.0,88813.0,0.27796186]
[1765736902858,0.00038462,88814.0,88813.0,0.27896186]
[1765736908879,0.00038462,88814.0,88813.0,0.27796186]
[1765736909280,0.00138462,88814.0,88813.0,0.28096186]
[1765736909748,0.00138462,88814.0,88813.0,0.27996186]
[1765736909960,0.00138462,88814.0,88813.0,0.28296186]
[1765736910801,0.11372979,88814.0,88813.0,0.25846186]
[1765736910952,0.11372979,88814.0,88813.0,0.28300186]
[1765736911176,0.11372979,88814.0,88813.0,0.006]
[1765736911798,0.01437462,88814.0,88813.0,0.006]
[1765736911978,0.14132266,88814.0,88813.0,0.006]
[1765736912176,0.35352238,88814.0,88813.0,0.006]
[1765736913428,0.12833266,88814.0,88813.0,0.006]
[1765736922171,0.11534266,88814.0,88813.0,0.006]
[1765736922381,0.00299749,88814.0,88813.0,0.006]
[1765736923168,0.11534266,88814.0,88813.0,0.006]
[1765736926508,0.00299749,88814.0,88813.0,0.006]
[1765736926959,0.11534266,88814.0,88813.0,0.006]
[1765736927187,0.00138462,88814.0,88813.0,0.0219]
[1765736927342,0.00138462,88814.0,88813.0,0.04644]
[1765736927929,0.00138462,88814.0,88813.0,0.006]
[1765736928129,0.12671979,88814.0,88813.0,0.006]
[1765736928976,0.00138462,88814.0,88813.0,0.006]
[1765736929557,0.11372979,88814.0,88813.0,0.006]
[1765736930144,0.33891951,88814.0,88813.0,0.006]
[1765736933463,0.11372979,88814.0,88813.0,0.006]
[1765736934925,0.11372979,88814.0,88813.0,0.02155988]
[1765736935106,0.11372979,88814.0,88813.0,0.006]
[1765736935311,0.11372979,88814.0,88813.0,0.04644]
[1765736935709,0.00138462,88814.0,88813.0,0.04644]
[1765736936410,0.11372979,88814.0,88813.0,0.006]
[1765736937493,0.12671979,88814.0,88813.0,0.006]
[1765736938694,0.13970979,88814.0,88813.0,0.006]
[1765736939092,0.12671979,88814.0,88813.0,0.006]
[1765736940637,0.11372979,88814.0,88813.0,0.006]
[1765736941424,0.12671979,88814.0,88813.0,0.006]
[1765736941625,0.13970979,88814.0,88813.0,0.006]
[1765736941831,0.36489951,88814.0,88813.0,0.006]
[1765736942034,0.35190951,88814.0,88813.0,0.006]
[1765736942283,0.33891951,88814.0,88813.0,0.006]
[1765736946811,0.11372979,88814.0,88813.0,0.006]
[1765736954596,0.11372979,88814.0,88813.0,0.23119225]
[1765736954827,0.00138462,88814.0,88813.0,0.24353225]
[1765736955009,0.00138462,88814.0,88813.0,0.01834]
[1765736955420,0.00138462,88814.0,88813.0,0.006]
[1765736959563,0.00138462,88814.0,88813.0,0.01834]
[1765736959564,0.11372979,88814.0,88813.0,0.01834]
[1765736959776,0.11372979,88814.0,88813.0,0.04177]
[1765736960313,0.11372979,88814.0,88813.0,0.01834]
[1765736964107,0.11372979,88814.0,88813.0,0.006]
[1765736965317,0.12671979,88814.0,88813.0,0.006]
[1765736968739,0.11372979,88814.0,88813.0,0.006]
[1765736976909,0.13970979,88814.0,88813.0,0.006]
[1765736977648,0.12671979,88814.0,88813.0,0.006]
[1765736978654,0.12671979,88814.0,88813.0,0.23119225]
[1765736979707,0.12671979,88814.0,88813.0,0.006]
[1765736980636,0.11372979,88814.0,88813.0,0.006]
[1765736981262,0.14753647,88814.0,88813.0,0.006]
[1765736981460,0.17351647,88814.0,88813.0,0.006]
[1765736982090,0.00138462,88814.0,88813.0,0.006]
[1765736983695,0.11372979,88814.0,88813.0,0.006]
[1765736989862,0.36489951,88814.0,88813.0,0.006]
[1765736991285,0.25416721,88814.0,88813.0,0.006]
[1765736991485,0.36651238,88814.0,88813.0,0.006]
[1765736992470,0.37777275,88814.0,88813.0,0.006]
[1765737001248,0.12660303,88814.0,88813.0,0.23119225]
[1765737001454,0.11534266,88814.0,88813.0,0.23119225]
[1765737001661,0.11534266,88814.0,88813.0,0.27130225]
[1765737001662,0.00138462,88814.0,88813.0,0.27130225]
[1765737001880,0.00138462,88814.0,88813.0,0.30510302]
[1765737002092,0.23637541,88842.0,88840.0,0.22512309]
[1765737002093,0.05811584,88842.0,88840.0,0.22512309]
[1765737002306,0.11234517,88841.0,88840.0,0.22523879]
[1765737002928,0.02905517,88848.0,88840.0,0.22523879]
[1765737002929,0.11234517,88849.0,88846.0,0.01125543]
[1765737003133,0.12360022,88849.0,88844.0,0.23636936]
[1765737003350,0.11234517,88849.0,88848.0,0.01524]
[1765737003523,0.11234517,88849.0,88848.0,0.24034354]
[1765737003759,0.11234517,88849.0,88848.0,0.26521354]
[1765737004002,0.00166523,88851.0,88850.0,0.22509848]
[1765737004206,0.00166523,88851.0,88850.0,0.24033848]
[1765737004410,0.00166523,88851.0,88850.0,0.26520848]
[1765737004991,0.00166523,88851.0,88850.0,0.04011]
[1765737005213,0.00166523,88851.0,88848.0,0.01125517]
[1765737005214,0.11234517,88849.0,88848.0,0.01125517]
[1765737005412,0.11234517,88849.0,88848.0,0.23635871]
[1765737005594,0.11534517,88849.0,88848.0,0.23635871]
[1765737005958,0.11234517,88849.0,88848.0,0.23635871]
[1765737006159,0.11234517,88849.0,88848.0,0.26122871]
[1765737006360,0.11234517,88849.0,88848.0,0.27646871]
[1765737006761,0.12526519,88851.0,88848.0,0.27646871]
[1765737006973,0.11234517,88849.0,88848.0,0.27646871]
[1765737007192,0.11234517,88849.0,88848.0,0.25159871]
[1765737007395,0.11234517,88849.0,88848.0,0.001]
[1765737007600,0.23801704,88851.0,88847.0,0.0112553]
[1765737007815,0.11234517,88848.0,88847.0,0.23636138]
[1765737008212,0.11234517,88848.0,88847.0,0.27647138]
[1765737009243,0.11234517,88848.0,88847.0,0.27747138]
[1765737010632,0.11234517,88848.0,88847.0,0.27847138]
[1765737015023,0.1140104,88851.0,88850.0,0.22509848]
[1765737015228,0.1140104,88851.0,88850.0,0.24033848]
[1765737015424,0.1140104,88851.0,88850.0,0.04011]
[1765737015685,0.11234517,88850.0,88849.0,0.0118]
[1765737017467,0.11234517,88850.0,88849.0,0.0128]
[1765737019678,0.11234517,88850.0,88849.0,0.05291]
[1765737020804,0.11234517,88850.0,88849.0,0.02804]
[1765737022507,0.11234517,88850.0,88849.0,0.05291]
[1765737023760,0.00166523,88851.0,88850.0,0.22509848]
[1765737024019,0.00166523,88851.0,88850.0,0.26520848]
[1765737025190,0.00166523,88851.0,88850.0,0.26620848]
[1765737026420,0.00166523,88851.0,88850.0,1.02363348]
[1765737026622,0.00788,88877.0,88874.0,0.01125188]
[1765737026623,0.0112515,88877.0,88874.0,0.01125188]
[1765737026873,0.0112515,88877.0,88872.0,0.23629287]
[1765737026874,0.23628425,88876.0,88875.0,0.01078]
[1765737027304,0.34862942,88876.0,88875.0,0.01078]
[1765737027735,0.34939332,88876.0,88875.0,0.01078]
[1765737027910,0.34939332,88876.0,88875.0,0.0001157]
[1765737028282,0.35039332,88876.0,88875.0,0.0001157]
[1765737029563,0.55910102,88876.0,88875.0,0.0001157]
[1765737029766,0.69555619,88876.0,88875.0,0.0001157]
[1765737029967,0.72178339,88876.0,88875.0,0.0001157]
[1765737030331,0.73030071,88876.0,88875.0,0.0001157]
[1765737030498,0.71978339,88876.0,88875.0,0.0001157]
[1765737030704,0.58169822,88876.0,88875.0,0.0001157]
[1765737031057,0.60797102,88876.0,88875.0,0.0001157]
[1765737031258,0.71631619,88876.0,88875.0,0.0001157]
[1765737031462,0.72131619,88876.0,88875.0,0.0011157]
[1765737031664,0.7455681,88876.0,88875.0,0.0011157]
[1765737031875,0.7415681,88876.0,88875.0,0.0011157]
[1765737032027,0.7455681,88876.0,88875.0,0.0011157]
[1765737032777,0.7405681,88876.0,88875.0,0.0001157]
[1765737033122,0.7445681,88876.0,88875.0,0.0001157]
[1765737033690,0.4538681,88876.0,88875.0,0.0001157]
[1765737033889,0.41524619,88876.0,88875.0,0.0001157]
[1765737034279,0.31727102,88876.0,88875.0,0.0001157]
[1765737034595,0.31327102,88876.0,88875.0,0.0001157]
[1765737034802,0.30927102,88876.0,88875.0,0.0001157]
[1765737035217,0.31227102,88876.0,88875.0,0.0001157]
[1765737035629,0.28816102,88876.0,88875.0,0.0001157]
[1765737035856,0.27379102,88876.0,88875.0,0.0001157]
[1765737036463,0.29216102,88876.0,88875.0,0.0001157]
[1765737037121,0.0077639,88876.0,88875.0,0.27784086]
[1765737037325,0.0077639,88876.0,88875.0,0.29560086]
[1765737037548,3.9e-06,88876.0,88875.0,0.29560086]
[1765737037750,0.0004,88887.0,88875.0,0.29560086]
[1765737037751,0.0004,88887.0,88886.0,0.22500731]
[1765737037960,0.0004,88887.0,88886.0,0.27134731]
[1765737038182,0.0004,88887.0,88886.0,0.29545731]
[1765737038591,0.0004,88887.0,88886.0,0.40785731]
[1765737039211,0.0004,88887.0,88886.0,0.69855731]
[1765737039414,0.0004,88887.0,88886.0,0.58615731]
[1765737039595,0.0004,88887.0,88886.0,1.28620431]
[1765737039743,0.0004,88887.0,88886.0,1.23658697]
[1765737039938,0.0004,88887.0,88886.0,1.14688797]
[1765737040144,0.0004,88887.0,88886.0,1.14788797]
[1765737040384,0.0004,88887.0,88886.0,1.14588797]
[1765737040558,0.0004,88887.0,88886.0,1.14888797]
[1765737040776,0.0004,88887.0,88886.0,1.15288797]
[1765737041392,0.0004,88887.0,88886.0,1.12640497]
[1765737043082,0.00073603,88887.0,88886.0,1.12640497]
[1765737045682,0.00073603,88887.0,88886.0,1.23880497]
[1765737047126,0.00073603,88887.0,88886.0,1.17642336]
[1765737047327,0.00073603,88887.0,88886.0,1.28882336]
[1765737048349,0.0004,88901.0,88886.0,1.28882336]
[1765737048350,0.0004,88901.0,88900.0,0.27499026]
[1765737048615,0.0004,88901.0,88900.0,2.74854026]
[1765737049039,0.0004,88901.0,88900.0,2.75304169]
[1765737049503,0.0004,88901.0,88900.0,2.75704169]
[1765737049960,0.0004,88901.0,88900.0,2.76204169]
[1765737053493,0.0004,88901.0,88900.0,2.77875256]
[1765737054011,0.00082757,88901.0,88900.0,2.77875256]
[1765737054718,0.00082757,88901.0,88900.0,2.66635256]
[1765737055320,0.00082757,88901.0,88900.0,1.96976756]
[1765737055933,0.00082757,88901.0,88900.0,2.02597256]
[1765737057548,0.00082757,88901.0,88900.0,1.96976756]
[1765737060490,0.00082757,88901.0,88900.0,0.2911633]
[1765737060654,0.11317274,88901.0,88900.0,0.24632187]
[1765737060856,0.11317274,88901.0,88900.0,0.23397187]
[1765737061228,0.11478561,88901.0,88900.0,0.005]
[1765737061339,0.11478561,88901.0,88900.0,0.22997187]
[1765737061547,0.11478561,88901.0,88900.0,0.27354187]
[1765737061548,0.00244044,88901.0,88900.0,0.27354187]
[1765737062006,0.00244044,88901.0,88900.0,0.26954187]
[1765737062007,0.00082757,88901.0,88900.0,0.26954187]
[1765737062437,0.00282757,88901.0,88900.0,0.26954187]
[1765737062712,0.00282757,88901.0,88900.0,0.26454187]
[1765737063219,0.00282757,88901.0,88900.0,0.26854187]
[1765737063598,0.00282757,88901.0,88900.0,0.26454187]
[1765737064208,0.00082757,88901.0,88900.0,0.26454187]
[1765737066837,0.01125023,88887.0,88882.0,0.01125087]
[1765737067017,0.03962044,88901.0,88875.0,0.0124657]
[1765737067018,0.22503109,88877.0,88875.0,0.0001157]
[1765737067228,0.01666287,88876.0,88875.0,0.0001157]
[1765737067430,0.15113804,88876.0,88875.0,0.0001157]
[1765737069352,0.15313804,88876.0,88875.0,0.0001157]
[1765737070388,0.13100804,88876.0,88875.0,0.0001157]
[1765737070598,0.15313804,88876.0,88875.0,0.0001157]
[1765737072861,0.17089804,88876.0,88875.0,0.0001157]
[1765737074029,0.16889804,88876.0,88875.0,0.0001157]
[1765737074368,0.17089804,88876.0,88875.0,0.0001157]
[1765737074868,0.16889804,88876.0,88875.0,0.0001157]
[1765737075624,0.17189804,88876.0,88875.0,0.0001157]
[1765737078988,0.51244627,88876.0,88875.0,0.0001157]
[1765737079193,0.54623943,88876.0,88875.0,0.0001157]
[1765737079742,0.54323943,88876.0,88875.0,0.0001157]
[1765737080146,0.54723943,88876.0,88875.0,0.0001157]
[1765737086211,0.57132845,88876.0,88875.0,0.0001157]
[1765737086432,0.58178816,88876.0,88875.0,0.0001157]
[1765737088068,0.0112572,88832.0,88826.0,0.01125796]
[1765737088278,0.11234517,88828.0,88827.0,0.23641237]
[1765737089020,0.01125695,88834.0,88827.0,0.23641237]
[1765737089231,0.23611833,88835.0,88834.0,0.22513902]
[1765737089232,0.01098,88835.0,88834.0,0.22513902]
[1765737089428,0.11234517,88838.0,88837.0,0.23638697]
[1765737090560,0.23636504,88846.0,88840.0,0.01125619]
[1765737090770,0.11234517,88851.0,88848.0,0.01125517]
[1765737090898,0.11234517,88851.0,88847.0,0.0112553]
[1765737090899,0.12359996,88851.0,88847.0,0.0112553]
[1765737091124,0.12359996,88851.0,88848.0,0.01125517]
[1765737091758,0.01125505,88849.0,88844.0,0.02306568]
[1765737092067,0.11234517,88843.0,88842.0,0.01125593]
[1765737092254,0.11234517,88843.0,88842.0,0.02306593]
[1765737092459,0.11234517,88843.0,88842.0,0.03833593]
[1765737092663,0.11234517,88843.0,88842.0,0.06088593]
[1765737092840,0.11234517,88852.0,88850.0,0.22509634]
[1765737093247,0.11234517,88852.0,88849.0,0.01125505]
[1765737093661,0.11234517,88850.0,88849.0,0.01125505]
[1765737093862,0.11234517,88850.0,88849.0,0.23635606]
[1765737094760,0.11234517,88850.0,88849.0,0.01125505]
[1765737095094,0.23632543,88861.0,88851.0,0.22509594]
[1765737095240,0.03545276,88865.0,88861.0,0.01125353]
[1765737095445,0.02175622,88865.0,88861.0,0.01125353]
[1765737095654,0.01125315,88864.0,88861.0,0.01125353]
[1765737096082,0.01125327,88863.0,88858.0,0.24814149]
[1765737096493,0.22506679,88863.0,88859.0,0.03380378]
[1765737096871,0.02422941,88874.0,88858.0,0.24814149]
[1765737096872,0.01125251,88869.0,88863.0,0.23631882]
[1765737097305,0.11234517,88864.0,88863.0,0.23631882]
[1765737098415,0.11234517,88863.0,88862.0,0.0112534]
[1765737098616,0.11234517,88863.0,88862.0,0.23632148]
[1765737099624,0.11334517,88863.0,88862.0,0.23632148]
[1765737101417,0.11334517,88863.0,88862.0,0.0112534]
[1765737101613,0.11234517,88862.0,88861.0,0.01125353]
[1765737102832,0.11334517,88862.0,88861.0,0.01125353]
[1765737106048,0.11334517,88862.0,88861.0,0.02652353]
[1765737106284,0.11334517,88862.0,88861.0,0.01527]
[1765737106439,0.10734517,88861.0,88859.0,0.23632901]
[1765737106639,0.11234562,88861.0,88859.0,0.23632901]
[1765737107187,0.11234562,88861.0,88857.0,0.22507892]
[1765737107188,0.01125429,88855.0,88849.0,0.03436]
[1765737107405,0.11234562,88861.0,88826.0,0.02255]
[1765737107406,0.01125695,88834.0,88826.0,0.02255]
[1765737107604,0.11234562,88830.0,88826.0,0.02266576]
[1765737107726,0.11234562,88830.0,88827.0,0.01125783]
[1765737108138,0.11234562,88830.0,88829.0,0.01527]
[1765737108550,0.11234562,88830.0,88829.0,0.03782]
[1765737109402,0.11234562,88830.0,88829.0,0.04182]
[1765737109610,0.11234562,88830.0,88829.0,0.04582]
[1765737111092,0.22511933,88842.0,88835.0,0.01125682]
[1765737111387,0.11234562,88838.0,88835.0,0.01125682]
[1765737111591,0.11234562,88838.0,88836.0,0.02255]
[1765737112119,0.22510448,88848.0,88836.0,0.02255]
[1765737112120,0.01125517,88848.0,88843.0,0.01125581]
[1765737112321,0.01125517,88848.0,88845.0,0.01125555]
[1765737112523,0.0112553,88847.0,88844.0,0.02255]
[1765737113270,0.11234562,88845.0,88844.0,0.02255]
[1765737114981,0.11234562,88845.0,88844.0,0.02355]
[1765737115308,0.11234562,88845.0,88844.0,0.02555]
[1765737115952,0.11234562,88845.0,88844.0,0.04082]
[1765737116336,0.11234562,88846.0,88844.0,0.05207568]
[1765737116548,0.11234562,88846.0,88845.0,0.03677]
[1765737116738,0.11234562,88846.0,88845.0,0.05271]
[1765737117751,0.11234562,88846.0,88845.0,0.02781]
[1765737118370,0.11234562,88846.0,88845.0,0.02881]
[1765737118584,0.11234562,88846.0,88845.0,0.02981]
[1765737118795,0.23634226,88855.0,88845.0,0.05471]
[1765737118996,0.01125479,88851.0,88847.0,0.0271953]
[1765737119203,0.01125492,88850.0,88847.0,0.0271953]
[1765737119363,0.01125492,88850.0,88847.0,0.0520953]
[1765737119942,0.01125492,88850.0,88847.0,0.04084]
[1765737120529,0.11234562,88846.0,88845.0,0.002]
[1765737120729,0.22510861,88846.0,88845.0,0.002]
[1765737120931,0.33745423,88846.0,88845.0,0.001]
[1765737121160,0.11234562,88846.0,88843.0,0.01125581]
[1765737121334,0.23635384,88850.0,88847.0,0.001]
[1765737121553,0.23635384,88850.0,88849.0,0.01187]
[1765737121760,0.01125429,88855.0,88851.0,0.01125479]
[1765737122089,0.11234562,88853.0,88852.0,0.01125467]
[1765737122550,0.11234562,88853.0,88851.0,0.01125479]
[1765737122755,0.11234562,88852.0,88851.0,0.01125479]
[1765737122956,0.11234562,88850.0,88849.0,0.001]
[1765737123204,0.01125505,88849.0,88846.0,0.01125543]
[1765737123340,0.23635713,88849.0,88845.0,0.23736452]
[1765737123541,0.23635713,88849.0,88845.0,0.23636452]
[1765737123736,0.01125505,88849.0,88846.0,0.01125543]
[1765737124808,0.0112553,88847.0,88845.0,0.001]
[1765737125803,0.22510861,88846.0,88845.0,0.001]
[1765737126004,0.0112553,88847.0,88844.0,0.01125568]
[1765737126205,0.23635871,88848.0,88844.0,0.01125568]
[1765737126206,0.01125517,88848.0,88846.0,0.001]
[1765737126408,0.01125517,88848.0,88846.0,0.002]
[1765737126621,0.01125517,88848.0,88846.0,0.001]
[1765737127019,0.01125517,88848.0,88844.0,0.01125568]
[1765737127199,0.01125517,88848.0,88844.0,0.01225568]
[1765737127799,0.01125517,88848.0,88845.0,0.001]
[1765737128010,0.01125517,88848.0,88846.0,0.001]
[1765737128760,0.11234562,88858.0,88855.0,0.22508581]
[1765737128904,0.01098,88868.0,88857.0,0.02781]
[1765737128905,0.22507568,88859.0,88857.0,0.02781]
[1765737129084,0.01125365,88860.0,88857.0,0.02781]
[1765737129293,0.0112534,88862.0,88858.0,0.22507613]
[1765737129688,0.11234562,88859.0,88858.0,0.23633004]
[1765737133027,0.11334562,88859.0,88858.0,0.23633004]
[1765737133224,0.001,88859.0,88857.0,0.02312403]
[1765737133525,0.11234562,88858.0,88857.0,0.01187]
[1765737133731,0.23633477,88857.0,88852.0,0.01125467]
[1765737133938,0.01125429,88855.0,88852.0,0.01125467]
[1765737134358,0.12359978,88856.0,88852.0,0.01125467]
[1765737134533,0.11234562,88856.0,88854.0,0.22508834]
[1765737135643,0.12359978,88856.0,88853.0,0.01125454]
[1765737135982,0.11234562,88854.0,88853.0,0.01125454]
[1765737136390,0.11234562,88853.0,88852.0,0.001]
[1765737136686,0.11234562,88852.0,88851.0,0.01125479]
[1765737137554,0.11234562,88852.0,88851.0,0.23634974]
[1765737137958,0.11234562,88852.0,88851.0,0.23734974]
[1765737139267,0.11234562,88852.0,88851.0,0.23834974]
[1765737140148,0.11234562,88852.0,88851.0,0.002]
[1765737140349,0.12810562,88852.0,88851.0,0.002]
[1765737140550,0.15006562,88852.0,88851.0,0.002]
[1765737141930,0.11234562,88853.0,88852.0,0.22509113]
[1765737143297,0.11234562,88853.0,88852.0,0.22609113]
[1765737144152,0.11234562,88853.0,88852.0,0.24303113]
[1765737144353,0.11234562,88853.0,88852.0,0.26793113]
[1765737144560,0.11234562,88853.0,88852.0,0.22709113]
[1765737145879,0.11234562,88853.0,88852.0,0.002]
[1765737146310,0.11234562,88853.0,88852.0,0.01794387]
[1765737147184,0.11234562,88853.0,88852.0,0.002]
[1765737147790,0.11234562,88853.0,88852.0,0.01794387]
[1765737148730,0.11234562,88860.0,88857.0,0.236333]
[1765737148937,0.11234562,88858.0,88857.0,0.236333]
[1765737151679,0.11234562,88857.0,88856.0,0.01125416]
[1765737152088,0.2250893,88854.0,88846.0,0.23697644]
[1765737152283,0.06004403,88857.0,88846.0,0.23697644]
[1765737152284,0.01125429,88855.0,88850.0,0.2363534]
[1765737152497,0.01585,88851.0,88848.0,0.01125517]
[1765737153754,0.02710479,88851.0,88848.0,0.01125517]
[1765737153955,0.01585,88851.0,88848.0,0.23635699]
[1765737154231,0.01125467,88852.0,88849.0,0.01225505]
[1765737154532,0.12360016,88853.0,88850.0,0.01125492]
[1765737154673,0.01125467,88852.0,88849.0,0.01325505]
[1765737154872,0.01125467,88852.0,88849.0,0.01225505]
[1765737155067,0.11234562,88853.0,88850.0,0.01125492]
[1765737156068,0.11234562,88853.0,88850.0,0.01225492]
[1765737156291,0.11234562,88853.0,88851.0,0.22509594]
[1765737156927,0.11234562,88856.0,88855.0,0.01125429]
[1765737157103,0.01125454,88853.0,88850.0,0.002]
[1765737157321,0.01125454,88853.0,88850.0,0.001]
[1765737157513,0.11234562,88851.0,88850.0,0.001]
[1765737157698,0.01125454,88853.0,88849.0,0.01125505]
[1765737157923,0.11234562,88850.0,88849.0,0.01125505]